fUST/lending_fUST_20250623
["ID","MTS","AMOUNT","RATE_DAILY","PERIOD"]
[367103951,1750660245915,-484.93,0.00021917,2]
[367103952,1750660245924,-1034.99,0.00021917,2]
[367103953,1750660245934,-881.75,0.00021917,2]
[367103955,1750660245943,-460.0,0.00021917,2]
[367103956,1750660245952,-460.0,0.00021917,2]
[367103957,1750660245962,-460.0,0.00021917,2]
[367103958,1750660245971,-460.0,0.00021917,2]
[367103959,1750660245981,-460.0,0.00021917,2]
[367103960,1750660245991,-497.87,0.00021917,2]
[367103961,1750660246001,-796.49,0.00021917,2]
[367103962,1750660246010,-400.0,0.00021918,7]
[367103963,1750660246021,-259.27366954,0.00021918,2]
[367103964,1750660246032,-160.0,0.00021942,2]
[367103965,1750660246043,-160.0,0.00021946,2]
[367103966,1750660246052,-160.0,0.00021946,2]
[367103967,1750660246061,-160.0,0.00021946,2]
[367103968,1750660246070,-836.70095952,0.00021946,2]
[367103969,1750660246080,-213.63163053,0.00021946,2]
[367103970,1750660246089,-230.18214666,0.00021946,2]
[367103971,1750660246099,-425.08510397,0.00021946,2]
[367103972,1750660246108,-160.0,0.00021946,2]
[367103973,1750660246118,-846.53928378,0.00021946,2]
[367103974,1750660246128,-160.0,0.00021946,2]
[367103975,1750660246137,-151.0,0.00021972,2]
[367103976,1750660246146,-198.0,0.00021972,2]
[367103977,1750660246155,-151.0,0.00021972,2]
[367103978,1750660246165,-151.0,0.00021972,2]
[367103980,1750660246175,-198.0,0.00021972,2]
[367103982,1750660246184,-198.0,0.00021972,2]
[367103984,1750660246193,-198.0,0.00021972,2]
[367103986,1750660246203,-198.0,0.00021972,2]
[367103988,1750660246213,-198.0,0.00021972,2]
[367103990,1750660246223,-198.0,0.00021972,2]
[367103992,1750660246232,-198.0,0.00021972,2]
[367103994,1750660246242,-500.0,0.00021972,2]
[367103996,1750660246253,-151.0,0.00021972,2]
[367103998,1750660246263,-151.0,0.00021972,2]
[367104000,1750660246272,-198.0,0.00021972,2]
[367104002,1750660246282,-151.0,0.00021972,2]
[367104004,1750660246291,-505.60203517,0.00021973,2]
[367104006,1750660246301,-502.55035468,0.00021973,2]
[367104008,1750660246310,-211.19422828,0.00021973,2]
[367104010,1750660246320,-500.0,0.00021973,2]
[367104012,1750660246330,-500.0,0.00021973,2]
[367104014,1750660246340,-500.0,0.00021973,2]
[367104016,1750660246351,-500.0,0.00021973,2]
[367104018,1750660246360,-500.0,0.00021973,2]
[367104020,1750660246370,-500.0,0.00021973,2]
[367104022,1750660246379,-211.08068204,0.00021973,2]
[367104024,1750660246389,-502.2469423,0.00021973,2]
[367104026,1750660246399,-627.1042849,0.00021973,2]
[367104028,1750660246411,-500.0,0.00021973,2]
[367104029,1750660246423,-500.0,0.00021973,2]
[367104030,1750660246433,-500.0,0.00021973,2]
[367104031,1750660246443,-500.72944794,0.00021973,2]
[367104032,1750660246452,-500.0,0.00021973,2]
[367104034,1750660246462,-500.0,0.00021973,2]
[367104036,1750660246472,-500.0,0.00021973,2]
[367104038,1750660246481,-500.0,0.00021973,2]
[367104040,1750660246491,-167.62540763,0.00021973,2]
[367104042,1750660246500,-500.0,0.00021973,2]
[367104044,1750660246510,-500.0,0.00021973,2]
[367104046,1750660246519,-500.0,0.00021973,2]
[367104048,1750660246529,-500.0,0.00021973,2]
[367104050,1750660246540,-500.0,0.00021973,2]
[367104052,1750660246550,-366.36247253,0.00021973,2]
[367104054,1750660246559,-501.31662438,0.00021973,2]
[367104056,1750660246570,-500.0,0.00021973,2]
[367104059,1750660246580,-500.0,0.00021973,2]
[367104061,1750660246590,-581.9702967,0.00021973,2]
[367104063,1750660246600,-355.19936786,0.00021973,2]
[367104065,1750660246609,-25513.20807659,0.0002199,2]
[367104067,1750660246619,-198.0,0.00021999,2]
[367104069,1750660246628,-151.0,0.00021999,2]
[367104071,1750660246638,-235.0,0.00021999,2]
[367104073,1750660246648,-500.0,0.00021999,2]
[367104075,1750660246657,-198.0,0.00021999,2]
[367104077,1750660246667,-198.0,0.00021999,2]
[367104079,1750660246677,-198.0,0.00021999,2]
[367104081,1750660246687,-368872.75715849,0.00022,2]
[367104083,1750660246697,-3286.49,0.00022,7]
[367104085,1750660246707,-151.0,0.00022,4]
[367104087,1750660246716,-151.0,0.00022,2]
[367104089,1750660246726,-151.0,0.00022,7]
[367104091,1750660246736,-151.0,0.00022,7]
[367104093,1750660246746,-151.0,0.00022,7]
[367104095,1750660246756,-7763.56,0.00022,7]
[367104097,1750660246766,-151.0,0.00022,7]
[367104099,1750660246776,-2741.42487917,0.00022,2]
[367104100,1750660246786,-200.0,0.00022,10]
[367104101,1750660246797,-200.0,0.00022,10]
[367104102,1750660246807,-200.0,0.00022,10]
[367104103,1750660246818,-200.0,0.00022,10]
[367104105,1750660246828,-200.0,0.00022,10]
[367104106,1750660246838,-200.0,0.00022,10]
[367104107,1750660246848,-200.0,0.00022,10]
[367104109,1750660246857,-200.0,0.00022,10]
[367104110,1750660246867,-200.0,0.00022,10]
[367104111,1750660246877,-200.0,0.00022,10]
[367104112,1750660246886,-160.0,0.00022,7]
[367104113,1750660246896,-349091.17847189,0.00022,2]
[367104114,1750660247645,-460.0,0.00021917,2]
[367104115,1750660247655,-492.82,0.00021917,2]
[367104116,1750660247664,-469.5044202,0.00022,2]
[367104117,1750660247676,-3876.0,0.00022,2]
[367104118,1750660247798,-47.11362711,0.00021916,2]
[367104120,1750660465393,192.85237323,0.000199,2]
[367104121,1750660541821,150.0,0.000199,2]
[367104126,1750660766524,150.0,0.000199,2]
[367104130,1750660979400,482.08448826,0.00024658,120]
[367104135,1750661118406,162.530966,0.00013699,2]
[367104137,1750661232129,-300.0,0.00020776,2]
[367104138,1750661232151,-5848.7126364,0.00020777,2]
[367104170,1750661432707,-300.0,0.00020776,2]
[367104173,1750661432717,-300.0,0.00020776,2]
[367104175,1750661432726,-19051.2873636,0.00020777,2]
[367104177,1750661432735,-205.736517,0.00020807,2]
[367104179,1750661432746,-160.0,0.00021579,2]
[367104180,1750661432757,-231.89409775,0.00021678,2]
[367104183,1750661432766,-299.1,0.00021682,2]
[367104185,1750661432776,-207.4,0.00021767,2]
[367104186,1750661432786,-1797.58993,0.00021778,2]
[367104189,1750661432795,-300.0,0.00021778,2]
[367104191,1750661432805,-1935.72351399,0.00021778,2]
[367104193,1750661432815,-257.512,0.00021779,2]
[367104195,1750661432824,-20523.44892026,0.0002178,2]
[367104197,1750661432840,-30437.64877063,0.0002178,2]
[367104199,1750661432850,-852.66657684,0.00021817,2]
[367104201,1750661432859,-1248.56930607,0.00021821,2]
[367104203,1750661432873,-852.66657681,0.00021838,2]
[367104205,1750661432882,-500.0,0.00021838,2]
[367104207,1750661432892,-852.66657681,0.00021859,2]
[367104209,1750661432901,-449.32896124,0.00021879,2]
[367104213,1750661432926,-403.33761557,0.00021879,2]
[367104215,1750661432936,-1476.52,0.0002189,10]
[367104217,1750661432946,-621.91055343,0.00021899,7]
[367104219,1750661432955,-427.63929845,0.000219,2]
[367104221,1750661432965,-2160.59253255,0.000219,4]
[367104223,1750661432976,-6349.49913464,0.000219,4]
[367104351,1750661438822,-465.54782892,0.00021778,2]
[367104353,1750661438832,-10.91298907,0.00021778,2]
[367104355,1750661438843,-489.08701093,0.00021778,2]
[367104357,1750661438853,-458.43095607,0.00021778,2]
[367104370,1750661438975,-41.56904393,0.00021778,2]
[367104373,1750661438984,-500.0,0.00021778,2]
[367104375,1750661438994,-500.0,0.00021778,2]
[367104377,1750661439003,-500.0,0.00021778,2]
[367104379,1750661439012,-381.25947673,0.00021778,2]
[367104381,1750661439023,-536.95805139,0.00021778,2]
[367104382,1750661439032,-500.0,0.00021778,2]
[367104384,1750661439042,-500.0,0.00021778,2]
[367104387,1750661439052,-500.0,0.00021778,2]
[367104388,1750661439062,-500.0,0.00021778,2]
[367104390,1750661439071,-500.0,0.00021778,2]
[367104392,1750661439081,-500.0,0.00021778,2]
[367104395,1750661439091,-500.0,0.00021778,2]
[367104397,1750661439100,-500.0,0.00021778,2]
[367104398,1750661439110,-500.0,0.00021778,2]
[367104400,1750661439120,-500.0,0.00021778,2]
[367104402,1750661439130,-500.0,0.00021778,2]
[367104405,1750661439139,-500.0,0.00021778,2]
[367104406,1750661439149,-500.0,0.00021778,2]
[367104407,1750661439159,-500.0,0.00021778,2]
[367104408,1750661439168,-500.0,0.00021778,2]
[367104409,1750661439177,-500.0,0.00021778,2]
[367104410,1750661439188,-500.0,0.00021778,2]
[367104411,1750661439197,-27596.53740581,0.000219,4]
[367104412,1750661439207,-852.66657681,0.000219,2]
[367104413,1750661439216,-365.8891638,0.000219,2]
[367104414,1750661439225,-2177.63369352,0.000219,2]
[367104415,1750661439234,-365.8891638,0.000219,2]
[367104416,1750661439243,-365.8891638,0.000219,2]
[367104417,1750661439251,-500.0,0.00021904,2]
[367104418,1750661439261,-247.04809669,0.00021904,2]
[367104419,1750661439270,-3992.62330708,0.00021904,2]
[367104420,1750661439281,-151.0,0.00021904,2]
[367104421,1750661439290,-151.0,0.00021904,2]
[367104422,1750661439299,-856.99,0.00021907,3]
[367104423,1750661439308,-428.49,0.00021907,3]
[367104424,1750661439317,-214.25,0.00021907,3]
[367104425,1750661439326,-214.25,0.00021907,3]
[367104426,1750661439336,-354.83914307,0.00021916,2]
[367104427,1750661439345,-500.0,0.00021916,2]
[367104428,1750661439354,-417.70195004,0.00021916,2]
[367104429,1750661439363,-155.348,0.00021916,2]
[367104430,1750661439372,-192.02,0.00021916,2]
[367104431,1750661439382,-460.0,0.00021917,2]
[367104432,1750661439391,-460.0,0.00021917,2]
[367104433,1750661439400,-460.0,0.00021917,2]
[367104434,1750661439409,-460.0,0.00021917,2]
[367104435,1750661439419,-460.0,0.00021917,2]
[367104436,1750661439428,-460.0,0.00021917,2]
[367104437,1750661439437,-460.0,0.00021917,2]
[367104438,1750661439447,-460.0,0.00021917,2]
[367104439,1750661439457,-563.01230618,0.00021917,2]
[367104440,1750661439466,-460.0,0.00021917,2]
[367104441,1750661439476,-460.0,0.00021917,2]
[367104442,1750661439485,-460.0,0.00021917,2]
[367104443,1750661439494,-174.98054953,0.00021917,2]
[367104444,1750661439504,-295.19795197,0.00021917,2]
[367104445,1750661439513,-470.81705909,0.00021917,2]
[367104448,1750661439727,-460.0,0.00021917,2]
[367104450,1750661439744,-460.0,0.00021917,2]
[367104452,1750661439753,-432.94515881,0.00021917,2]
[367104454,1750661439763,-460.0,0.00021917,2]
[367104456,1750661439773,-826.16,0.00021917,2]
[367104458,1750661439783,-460.0,0.00021917,2]
[367104460,1750661439792,-460.0,0.00021917,2]
[367104462,1750661439802,-460.67097445,0.00021917,2]
[367104464,1750661439811,-460.0,0.00021917,2]
[367104466,1750661439821,-174.46094549,0.00021917,2]
[367104468,1750661439831,-460.78625412,0.00021917,2]
[367104470,1750661439841,-460.0,0.00021917,2]
[367104472,1750661439850,-460.0,0.00021917,2]
[367104474,1750661439859,-179.2834103,0.00021917,2]
[367104476,1750661439872,-460.0,0.00021917,2]
[367104478,1750661439882,-460.0,0.00021917,2]
[367104480,1750661439892,-460.0,0.00021917,2]
[367104482,1750661439902,-460.0,0.00021917,2]
[367104484,1750661439911,-460.0,0.00021917,2]
[367104486,1750661439921,-460.0,0.00021917,2]
[367104488,1750661439930,-460.0,0.00021917,2]
[367104490,1750661439940,-645.92,0.00021917,2]
[367104492,1750661439949,-460.0,0.00021917,2]
[367104494,1750661439959,-460.0,0.00021917,2]
[367104496,1750661439968,-533.58,0.00021917,2]
[367104498,1750661439978,-460.0,0.00021917,2]
[367104500,1750661439987,-581.94169571,0.00021917,2]
[367104502,1750661439996,-201.95662886,0.00021917,2]
[367104504,1750661440006,-460.0,0.00021917,2]
[367104506,1750661440015,-460.0,0.00021917,2]
[367104508,1750661440025,-1081.68,0.00021917,2]
[367104510,1750661440034,-460.0,0.00021917,2]
[367104512,1750661440044,-460.0,0.00021917,2]
[367104514,1750661440053,-322.32479826,0.00021917,2]
[367104516,1750661440062,-460.0,0.00021917,2]
[367104518,1750661440071,-723.38,0.00021917,2]
[367104520,1750661440081,-460.0,0.00021917,2]
[367104522,1750661440090,-460.0,0.00021917,2]
[367104523,1750661440100,-585.32318055,0.00021917,2]
[367104525,1750661440109,-460.0,0.00021917,2]
[367104527,1750661440119,-460.0,0.00021917,2]
[367104529,1750661440128,-460.0,0.00021917,2]
[367104531,1750661440137,-460.0,0.00021917,2]
[367104533,1750661440146,-460.0,0.00021917,2]
[367104535,1750661440156,-460.0,0.00021917,2]
[367104537,1750661440165,-460.0,0.00021917,2]
[367104540,1750661440175,-460.0,0.00021917,2]
[367104542,1750661440184,-460.0,0.00021917,2]
[367104544,1750661440193,-460.0,0.00021917,2]
[367104546,1750661440203,-460.0,0.00021917,2]
[367104548,1750661440212,-280.97848887,0.00021917,2]
[367104549,1750661440221,-460.0,0.00021917,2]
[367104551,1750661440231,-460.0,0.00021917,2]
[367104552,1750661440240,-460.0,0.00021917,2]
[367104553,1750661440250,-455.27033712,0.00021917,2]
[367104554,1750661440259,-460.0,0.00021917,2]
[367104555,1750661440269,-460.0,0.00021917,2]
[367104556,1750661440279,-460.0,0.00021917,2]
[367104557,1750661440289,-460.0,0.00021917,2]
[367104558,1750661440299,-460.0,0.00021917,2]
[367104559,1750661440309,-518.32,0.00021917,2]
[367104560,1750661440319,-500.0,0.00021917,2]
[367104561,1750661440329,-460.0,0.00021917,2]
[367104563,1750661440339,-460.15393736,0.00021917,2]
[367104564,1750661440349,-460.0,0.00021917,2]
[367104566,1750661440358,-460.0,0.00021917,2]
[367104567,1750661440368,-368.91254908,0.00021917,2]
[367104569,1750661440377,-460.0,0.00021917,2]
[367104571,1750661440387,-460.0,0.00021917,2]
[367104572,1750661440396,-460.0,0.00021917,2]
[367104574,1750661440406,-460.0,0.00021917,2]
[367104576,1750661440415,-460.0,0.00021917,2]
[367104577,1750661440425,-500.0,0.00021917,2]
[367104578,1750661440434,-461.45320745,0.00021917,2]
[367104580,1750661440444,-460.0,0.00021917,2]
[367104581,1750661440453,-460.0,0.00021917,2]
[367104582,1750661440462,-460.0,0.00021917,2]
[367104583,1750661440471,-460.0,0.00021917,2]
[367104584,1750661440480,-1000.0,0.00021917,2]
[367104585,1750661440490,-460.0,0.00021917,2]
[367104586,1750661440499,-460.0,0.00021917,2]
[367104587,1750661440509,-460.0,0.00021917,2]
[367104588,1750661440519,-460.0,0.00021917,2]
[367104589,1750661440528,-460.0,0.00021917,2]
[367104590,1750661440538,-460.0,0.00021917,2]
[367104591,1750661440547,-460.0,0.00021917,2]
[367104593,1750661440556,-460.51869326,0.00021917,2]
[367104594,1750661440566,-460.0,0.00021917,2]
[367104595,1750661440575,-460.0,0.00021917,2]
[367104596,1750661440584,-460.0,0.00021917,2]
[367104597,1750661440594,-460.0,0.00021917,2]
[367104598,1750661440603,-460.0,0.00021917,2]
[367104599,1750661440612,-460.0,0.00021917,2]
[367104600,1750661440621,-460.0,0.00021917,2]
[367104601,1750661440631,-460.0,0.00021917,2]
[367104602,1750661440640,-460.0,0.00021917,2]
[367104603,1750661440649,-960.42,0.00021917,2]
[367104604,1750661440658,-460.0,0.00021917,2]
[367104605,1750661440667,-460.0,0.00021917,2]
[367104606,1750661440677,-573.79956687,0.00021917,2]
[367104607,1750661440687,-460.0,0.00021917,2]
[367104608,1750661440696,-525.35,0.00021917,2]
[367104609,1750661440706,-460.0,0.00021917,2]
[367104610,1750661440715,-460.0,0.00021917,2]
[367104611,1750661440724,-500.0,0.00021917,2]
[367104612,1750661440734,-460.0,0.00021917,2]
[367104613,1750661440743,-460.0,0.00021917,2]
[367104614,1750661440753,-460.0,0.00021917,2]
[367104615,1750661440762,-460.0,0.00021917,2]
[367104616,1750661440771,-460.0,0.00021917,2]
[367104617,1750661440782,-680.55,0.00021917,2]
[367104618,1750661440791,-460.0,0.00021917,2]
[367104619,1750661440800,-460.0,0.00021917,2]
[367104620,1750661440809,-765.3,0.00021917,2]
[367104621,1750661440818,-961.23,0.00021917,2]
[367104622,1750661440828,-460.0,0.00021917,2]
[367104623,1750661440837,-460.0,0.00021917,2]
[367104624,1750661440846,-460.0,0.00021917,2]
[367104625,1750661440856,-460.0,0.00021917,2]
[367104626,1750661440867,-460.0,0.00021917,2]
[367104627,1750661440880,-460.0,0.00021917,2]
[367104628,1750661440889,-460.0,0.00021917,2]
[367104629,1750661440899,-460.0,0.00021917,2]
[367104630,1750661440909,-287.46108804,0.00021917,2]
[367104632,1750661440919,-460.0,0.00021917,2]
[367104633,1750661440929,-460.0,0.00021917,2]
[367104634,1750661440938,-499.85657197,0.00021917,2]
[367104635,1750661440947,-460.0,0.00021917,2]
[367104636,1750661440956,-460.0,0.00021917,2]
[367104638,1750661440966,-460.21410208,0.00021917,2]
[367104640,1750661440975,-460.0,0.00021917,2]
[367104642,1750661440984,-405.37084892,0.00021917,2]
[367104644,1750661440993,-460.0,0.00021917,2]
[367104646,1750661441003,-460.0,0.00021917,2]
[367104648,1750661441012,-460.0,0.00021917,2]
[367104650,1750661441021,-460.0,0.00021917,2]
[367104652,1750661441031,-460.0,0.00021917,2]
[367104654,1750661441041,-460.0,0.00021917,2]
[367104656,1750661441051,-460.0,0.00021917,2]
[367104658,1750661441061,-460.0,0.00021917,2]
[367104660,1750661441071,-460.0,0.00021917,2]
[367104662,1750661441081,-460.0,0.00021917,2]
[367104664,1750661441090,-460.0,0.00021917,2]
[367104666,1750661441100,-460.0,0.00021917,2]
[367104668,1750661441109,-1878.76,0.00021917,2]
[367104670,1750661441118,-460.0,0.00021917,2]
[367104672,1750661441128,-492.68,0.00021917,2]
[367104674,1750661441138,-460.0,0.00021917,2]
[367104676,1750661441149,-460.0,0.00021917,2]
[367104678,1750661441158,-460.0,0.00021917,2]
[367104680,1750661441168,-223.30599992,0.00021917,2]
[367104682,1750661441177,-460.0,0.00021917,2]
[367104684,1750661441187,-460.0,0.00021917,2]
[367104686,1750661441196,-464.23441407,0.00021917,2]
[367104688,1750661441205,-460.0,0.00021917,2]
[367104690,1750661441214,-460.0,0.00021917,2]
[367104692,1750661441223,-460.0,0.00021917,2]
[367104693,1750661441233,-555.0,0.00021917,2]
[367104694,1750661441243,-460.68420026,0.00021917,2]
[367104695,1750661441252,-460.0,0.00021917,2]
[367104696,1750661441262,-604.57556049,0.00021917,2]
[367104697,1750661441271,-572.95212871,0.00021917,2]
[367104698,1750661441281,-460.0,0.00021917,2]
[367104700,1750661441290,-460.0,0.00021917,2]
[367104702,1750661441300,-494.58,0.00021917,2]
[367104704,1750661441309,-460.0,0.00021917,2]
[367104706,1750661441319,-628.71,0.00021917,2]
[367104707,1750661441328,-460.0,0.00021917,2]
[367104708,1750661441338,-460.0,0.00021917,2]
[367104709,1750661441347,-460.0,0.00021917,2]
[367104710,1750661441357,-460.0,0.00021917,2]
[367104711,1750661441366,-460.0,0.00021917,2]
[367104712,1750661441376,-460.0,0.00021917,2]
[367104713,1750661441386,-460.0,0.00021917,2]
[367104714,1750661441395,-460.0,0.00021917,2]
[367104715,1750661441405,-351.52281316,0.00021917,2]
[367104716,1750661441415,-300.0,0.00021917,2]
[367104717,1750661441424,-460.0,0.00021917,2]
[367104718,1750661441434,-460.0,0.00021917,2]
[367104719,1750661441444,-460.0,0.00021917,2]
[367104720,1750661441454,-460.0,0.00021917,2]
[367104721,1750661441463,-460.0,0.00021917,2]
[367104722,1750661441473,-460.0,0.00021917,2]
[367104723,1750661441482,-460.0,0.00021917,2]
[367104724,1750661441492,-460.0,0.00021917,2]
[367104725,1750661441501,-460.0,0.00021917,2]
[367104726,1750661441510,-460.0,0.00021917,2]
[367104727,1750661441520,-460.0,0.00021917,2]
[367104728,1750661441530,-557.44,0.00021917,2]
[367104729,1750661441539,-796.49,0.00021917,2]
[367104730,1750661441548,-460.0,0.00021917,2]
[367104731,1750661441557,-460.0,0.00021917,2]
[367104732,1750661441567,-460.0,0.00021917,2]
[367104733,1750661441577,-1180.35,0.00021917,2]
[367104734,1750661441586,-1512.8,0.00021917,2]
[367104735,1750661441596,-778.29,0.00021917,2]
[367104736,1750661441605,-460.0,0.00021917,2]
[367104737,1750661441614,-460.0,0.00021917,2]
[367104738,1750661441624,-460.0,0.00021917,2]
[367104739,1750661441633,-460.0,0.00021917,2]
[367104740,1750661441643,-460.0,0.00021917,2]
[367104741,1750661441652,-505.30780488,0.00021917,2]
[367104742,1750661441662,-743.14,0.00021917,2]
[367104743,1750661441671,-1034.99,0.00021917,2]
[367104744,1750661441681,-460.0,0.00021917,2]
[367104745,1750661441691,-460.29657592,0.00021917,2]
[367104746,1750661441700,-460.0,0.00021917,2]
[367104747,1750661441709,-226.54280683,0.00021917,2]
[367104748,1750661441718,-460.0,0.00021917,2]
[367104749,1750661441727,-460.0,0.00021917,2]
[367104750,1750661441736,-493.71797296,0.00021917,2]
[367104751,1750661441746,-460.0,0.00021917,2]
[367104752,1750661441756,-460.0,0.00021917,2]
[367104753,1750661441765,-656.92,0.00021917,2]
[367104754,1750661441775,-460.0,0.00021917,2]
[367104755,1750661441788,-460.0,0.00021917,2]
[367104756,1750661441797,-497.87,0.00021917,2]
[367104757,1750661441807,-460.0,0.00021917,2]
[367104758,1750661441816,-500.0,0.00021917,2]
[367104759,1750661441827,-513.91185086,0.00021917,2]
[367104760,1750661441836,-460.0,0.00021917,2]
[367104761,1750661441845,-460.0,0.00021917,2]
[367104762,1750661441855,-433.04079317,0.00021917,2]
[367104763,1750661441864,-460.0,0.00021917,2]
[367104764,1750661441876,-1852.54,0.00021917,2]
[367104765,1750661441885,-460.0,0.00021917,2]
[367104766,1750661441895,-2992.06,0.00021917,2]
[367104767,1750661441904,-460.0,0.00021917,2]
[367104768,1750661441914,-460.0,0.00021917,2]
[367104769,1750661441923,-999.11,0.00021917,2]
[367104770,1750661441932,-460.0,0.00021917,2]
[367104771,1750661441942,-460.0,0.00021917,2]
[367104772,1750661441951,-2084.17,0.00021917,2]
[367104773,1750661441962,-460.0,0.00021917,2]
[367104774,1750661441971,-460.0,0.00021917,2]
[367104775,1750661441980,-460.0,0.00021917,2]
[367104776,1750661441990,-1911.59,0.00021917,2]
[367104777,1750661441999,-460.0,0.00021917,2]
[367104778,1750661442009,-599.08,0.00021917,2]
[367104779,1750661442019,-1131.09,0.00021917,2]
[367104780,1750661442029,-460.0,0.00021917,2]
[367104781,1750661442042,-697.88,0.00021917,2]
[367104782,1750661442052,-460.0,0.00021917,2]
[367104783,1750661442061,-460.0,0.00021917,2]
[367104784,1750661442071,-842.81,0.00021917,2]
[367104785,1750661442080,-460.0,0.00021917,2]
[367104786,1750661442090,-460.0,0.00021917,2]
[367104787,1750661442099,-513.44,0.00021917,2]
[367104788,1750661442109,-460.0,0.00021917,2]
[367104789,1750661442119,-829.94,0.00021917,2]
[367104790,1750661442128,-460.0,0.00021917,2]
[367104791,1750661442138,-751.94,0.00021917,2]
[367104792,1750661442147,-1243.16,0.00021917,2]
[367104793,1750661442157,-652.48,0.00021917,2]
[367104794,1750661442167,-460.0,0.00021917,2]
[367104795,1750661442176,-460.0,0.00021917,2]
[367104796,1750661442186,-460.0,0.00021917,2]
[367104797,1750661442195,-460.0,0.00021917,2]
[367104798,1750661442205,-460.0,0.00021917,2]
[367104799,1750661442215,-460.0,0.00021917,2]
[367104800,1750661442224,-460.0,0.00021917,2]
[367104801,1750661442233,-669.72,0.00021917,2]
[367104802,1750661442243,-254.78552679,0.00021917,2]
[367104803,1750661442252,-460.0,0.00021917,2]
[367104804,1750661442262,-460.0,0.00021917,2]
[367104805,1750661442271,-1181.25,0.00021917,2]
[367104806,1750661442281,-460.0,0.00021917,2]
[367104807,1750661442291,-460.0,0.00021917,2]
[367104808,1750661442301,-1077.06,0.00021917,2]
[367104809,1750661442311,-460.0,0.00021917,2]
[367104810,1750661442321,-1652.19,0.00021917,2]
[367104811,1750661442331,-460.0,0.00021917,2]
[367104812,1750661442340,-460.0,0.00021917,2]
[367104813,1750661442349,-460.0,0.00021917,2]
[367104814,1750661442358,-460.0,0.00021917,2]
[367104815,1750661442368,-547.46089115,0.00021917,2]
[367104816,1750661442378,-460.0,0.00021917,2]
[367104817,1750661442387,-460.0,0.00021917,2]
[367104818,1750661442397,-460.0,0.00021917,2]
[367104819,1750661442406,-985.42,0.00021917,2]
[367104820,1750661442415,-460.0,0.00021917,2]
[367104821,1750661442424,-460.0,0.00021917,2]
[367104822,1750661442434,-460.0,0.00021917,2]
[367104823,1750661442443,-460.0,0.00021917,2]
[367104824,1750661442452,-460.0,0.00021917,2]
[367104825,1750661442462,-460.0,0.00021917,2]
[367104826,1750661442471,-460.0,0.00021917,2]
[367104827,1750661442480,-548.22,0.00021917,2]
[367104828,1750661442489,-460.0,0.00021917,2]
[367104829,1750661442499,-460.0,0.00021917,2]
[367104830,1750661442507,-935.28,0.00021917,2]
[367104831,1750661442517,-460.0,0.00021917,2]
[367104832,1750661442526,-460.0,0.00021917,2]
[367104833,1750661442537,-460.0,0.00021917,2]
[367104834,1750661442546,-460.48002916,0.00021917,2]
[367104835,1750661442555,-460.0,0.00021917,2]
[367104836,1750661442565,-460.0,0.00021917,2]
[367104837,1750661442574,-460.0,0.00021917,2]
[367104838,1750661442583,-1317.08,0.00021917,2]